Cogmind - Beta 15 @@@ ROGUE MODE // 2025.06.10 @ 15:07:48 Player: LightKnight Result: Destroyed by DAS Turret with DAS Cannon Performance ------------- Evolutions (1) 500 Regions Visited (5) 1000 Robots Destroyed (97) 485 Value Destroyed (2272) 2272 Prototype IDs (40) 800 Alien Tech Used (0) 0 Bonus (345) 345 TOTAL SCORE: 5402 Bonus ------- High Alert Combat Kills 38 Follower Combat Kills 7 Aligned with FarCom 300 Cogmind --------- Core Integrity 0/400 Matter 258/300 Energy 280/280 System Corruption 0% Temperature Cool (0) Movement Treading (240) Ox1 Location -9/Exiles Parts ------- > --- POWER (1) -------- Heavy Ion Engine > --- PROPULSION (3) --- Light Treads Light Treads > --- UTILITY (2) ------ High-capacity Storage Unit Experimental Targeting Computer > --- WEAPON (3) ------- Heavy Assault Rifle Improved Assault Rifle Mini Grenade Launcher > --- INVENTORY (20) --- Light Treads Improved Treads Improved Treads Improved Treads Advanced Myomer Leg High-capacity Matter Pod (188) Advanced Weapon Cycler Peak State ------------ > --- POWER ------------ Light Angular Momentum Engine > --- PROPULSION ------- Light Treads Light Treads Improved Treads > --- UTILITY ---------- Medium Armor Plating Hardlight Generator > --- WEAPON ----------- Heavy Assault Rifle Improved Assault Rifle Improved Assault Rifle > --- INVENTORY -------- Heavy Ion Engine Light Treads Improved Treads Heavy Assault Rifle Heavy Assault Rifle [Rating: 23] Favorites ----------- Power Improved Ion Engine Engine Improved Ion Engine Propulsion Light Treads Treads Light Treads Leg Aluminum Leg Utility Large Storage Unit Device Hardlight Generator Storage Large Storage Unit Processor Targeting Computer Protection Medium Armor Plating Weapon Improved Assault Rifle Energy Gun Small Laser Energy Cannon Advanced Beam Cannon Ballistic Gun Improved Assault Rifle Launcher Mini Grenade Launcher Special Melee Weapon Datajack Build | -11 -10 -10 -9 -9 -9 ------- Run | Yrd Mat Min Mat Min Exi Slots Evolved 2 | . . . 2 . . Power . | . . . . . . Propulsion 1 | . . . 1 . . Utility . | . . . . . . Weapon 1 | . . . 1 . . Parts Attached 43 | 1 10 2 18 1 11 Power 4 | . 1 . 2 . 1 Engine 4 | . 1 . 2 . 1 Core . | . . . . . . Reactor . | . . . . . . Propulsion 13 | . 3 . 7 1 2 Treads 12 | . 2 . 7 1 2 Leg 1 | . 1 . . . . Wheel . | . . . . . . Hover . | . . . . . . Flight . | . . . . . . Utility 11 | . 3 1 3 . 4 Device 2 | . . 1 . . 1 Storage 3 | . 1 . 1 . 1 Processor 2 | . 1 . . . 1 Hackware . | . . . . . . Protection 4 | . 1 . 2 . 1 Artifact . | . . . . . . Weapon 15 | 1 3 1 6 . 4 Energy Gun 1 | 1 . . . . . Energy Cannon 3 | . . . 3 . . Ballistic Gun 9 | . 3 1 3 . 2 Ballistic Cannon . | . . . . . . Launcher 1 | . . . . . 1 Special Weapon . | . . . . . . Impact Weapon . | . . . . . . Slashing Weapon . | . . . . . . Piercing Weapon . | . . . . . . Special Melee Weapon 1 | . . . . . 1 Unidentified Prototypes 2 | . . . 2 . . Parts Lost 14 | . . 3 2 . 9 Power 1 | . . . . . 1 Propulsion 4 | . . . 1 . 3 Utility 5 | . . 2 1 . 2 Weapon 4 | . . 1 . . 3 Highest Loss Streak 5 | . . 1 1 . 5 To Critical Strikes 4 | . . . . . 4 Average Backups 12 | 6 10 12 14 15 11 Power . | 1 1 1 . 1 . Propulsion 5 | 4 5 6 5 6 4 Utility 3 | . 2 3 4 4 2 Weapon 3 | 1 2 2 3 3 2 Tool/Special . | . . . . . . Unused Backups 29 | . 8 . 7 1 13 Power 5 | . 3 . 1 1 . Propulsion 9 | . 2 . 1 . 6 Utility 10 | . 2 . 1 . 7 Weapon 5 | . 1 . 4 . . Tool/Special . | . . . . . . Average Slot Usage (%) 98 | . 98 93 99 100 96 Engine 11 | . 14 14 11 11 10 Treads 30 | . 23 28 32 33 33 Storage 11 | . 14 14 11 11 7 Processor 1 | . 6 . . . . Protection 9 | . 6 6 10 11 8 Energy Cannon 2 | . . . 7 . . Ballistic Gun 27 | . 27 28 25 33 28 Peak Build Rating 23 | 6 13 13 21 20 23 Average Rating 17 | 6 12 12 19 20 19 On Entrance 12 | 6 6 13 12 20 20 Naked Turns . | . . . . . . Heaviest Build 64 | 13 36 36 45 44 64 Greatest Support 66 | 20 46 46 66 63 63 Greatest Overweight (x) 1 | . . . . . 1 Average Overweight (x) . | . . . . . . Largest Inventory Capacity 20 | 8 15 15 15 15 20 Average Capacity 14 | 8 13 15 15 15 14 Most Carried 18 | 6 13 13 15 15 18 Average Carried 12 | 6 10 12 14 15 11 Final Capacity 20 | 8 15 15 15 15 20 Final Carried 15 | 6 13 12 15 15 7 Class Distribution -------------------- 58% | Tank 36% | Mutant 3% | Scavenger-Gunner Dominant Class ---------------- Mutant | -10/Materials Mutant | -10/Mines Tank | -9/Materials Tank | -9/Mines Tank | -9/Exiles Resources | -11 -10 -10 -9 -9 -9 ----------- Run | Yrd Mat Min Mat Min Exi Matter Collected 2668 | 200 646 218 924 199 481 Remotely . | . . . . . . Salvage Created 3025 | . 678 278 1596 334 139 Parts 213 | . 57 20 113 19 4 Haulers Intercepted 5 | . 2 . 3 . . Recyclers Shooed . | . . . . . . Parts Field Recycled . | . . . . . . Retrieved Matter . | . . . . . . Parts Self-Destructed . | . . . . . . Prevented . | . . . . . . Kills | -11 -10 -10 -9 -9 -9 ------- Run | Yrd Mat Min Mat Min Exi Combat Hostiles Destroyed 85 | . 18 9 39 11 8 Guns 68 | . 18 9 27 11 3 Cannons 11 | . . . 11 . . AOE 5 | . . . . . 5 Classes Destroyed 10 | . 6 . 2 1 1 Worker 2 | . . . 2 . . Builder 4 | . 2 1 1 . . Hauler 5 | . 2 . 3 . . Operator 1 | . 1 . . . . Watcher 7 | . 2 . 5 . . Swarmer 29 | . 6 3 15 5 . Grunt 38 | . 12 6 15 5 . Brawler 1 | . . . . 1 . Sentry 9 | . . . 9 . . Assembled 7 | . . . . . 7 Best Kill Streak 7 | . 4 3 6 3 7 Combat Bots Only 7 | . 4 3 5 3 7 Max Kills in Single Turn 2 | . 1 2 2 2 2 Gunslinging 1 | . . 1 1 1 . Exploded 2 | . . . . . 2 Melee . | . . . . . . Uniques/NPCs Destroyed 1 | . . . . . 1 8R-AWN (-9/Exiles) Combat | -11 -10 -10 -9 -9 -9 -------- Run | Yrd Mat Min Mat Min Exi Hostile Shots Fired 333 | . 50 44 111 38 90 Missed 92 | . 14 10 32 12 24 Hits 241 | . 36 34 79 26 66 Projectile 241 | . 36 34 79 26 66 Critical Strikes 27 | . 1 2 2 1 21 Part Disruptions 1 | . . . . . 1 Damage Taken 3383 | . 368 469 879 298 1369 Core 585 | . 85 46 85 38 331 Absorbed by Shields 180 | . . . . . 180 Regen/Repaired (Parts) 299 | . . . 299 . . Core Remaining (%) 73 | 100 . 47 . . . Volleys Fired 230 | . 51 24 99 21 35 Largest 3 | . 2 2 3 3 3 Hottest 114 | . 46 46 114 69 69 Shots Fired 586 | . 101 48 281 63 93 Gun 523 | . 101 48 223 63 88 Cannon 58 | . . . 58 . . Launcher 5 | . . . . . 5 Special . | . . . . . . Kinetic 523 | . 101 48 223 63 88 Thermal 50 | . . . 50 . . Explosive 5 | . . . . . 5 Electromagnetic 8 | . . . 8 . . Robot Hit Streak 14 | . 8 6 14 7 14 Robot Miss Streak 9 | . 9 2 6 5 3 Penetration Max . | . . . . . . Secondary Targets 12 | . 1 3 4 4 . Max Gunslinging Chain 1 | . 1 1 1 1 . Shots Hit Robots 383 | . 67 42 166 36 72 Core Hits 169 | . 45 20 63 15 26 Critical Kills 1 | . . . 1 . . Critical Parts Destroyed 1 | . . . 1 . . Critical Strikes 2 | . . . 2 . . Meltdown 1 | . . . 1 . . Destroy 1 | . . . 1 . . Melee Attacks 3 | . . . . . 3 Impact . | . . . . . . Slashing . | . . . . . . Piercing . | . . . . . . Sneak Attacks 3 | . . . . . 3 Combat Hostiles . | . . . . . . Follow-up Attacks . | . . . . . . Damage Inflicted 6378 | . 957 680 2845 581 1315 Guns 5292 | . 957 644 2155 581 955 Cannons 660 | . . . 660 . . Explosions 360 | . . . . . 360 Melee . | . . . . . . Ramming 66 | . . 36 30 . . Kinetic 5292 | . 957 644 2155 581 955 Thermal 549 | . . . 549 . . Explosive 360 | . . . . . 360 Electromagnetic 111 | . . . 111 . . Impact . | . . . . . . Slashing . | . . . . . . Piercing . | . . . . . . Highest Corruption . | . . . . . . Average Corruption . | . . . . . . Corruption Purged . | . . . . . . Corruption Blocked . | . . . . . . Overload Shots . | . . . . . . Overflow Damage 30 | . . . 30 . . Projectiles 30 | . . . 30 . . Explosions . | . . . . . . Melee . | . . . . . . Knockbacks . | . . . . . . Impact . | . . . . . . Kinetic . | . . . . . . Secondary . | . . . . . . Self-Inflicted Damage . | . . . . . . Shots . | . . . . . . Rammed 7 | . . 5 2 . . Targets Rammed 9 | . . 6 3 . . Kicked . | . . . . . . Crushed 2 | . . 1 1 . . Highest Temperature 227 | . 23 112 227 45 126 Average Temperature 52 | . 5 52 58 17 57 Received Heat Transfer 886 | . 159 276 300 138 13 Effects 3 | . . . 3 . . Interference 3 | . . . 3 . . Siege Activations . | . . . . . . Martial Activations . | . . . . . . Shielding Activations . | . . . . . . Robots Disrupted . | . . . . . . Combat Hostiles . | . . . . . . Robots Corrupted . | . . . . . . Combat Hostiles . | . . . . . . Parts Fried . | . . . . . . Impact Corruptions . | . . . . . . Robots Melted 1 | . . . 1 . . Combat Hostiles 1 | . . . 1 . . Parts Melted . | . . . . . . Heat Transferred 925 | . . . 925 . . Parts Sabotaged . | . . . . . . Parts Stolen . | . . . . . . Parts Stripped . | . . . . . . Power Chain Reactions . | . . . . . . Alert | -11 -10 -10 -9 -9 -9 ------- Run | Yrd Mat Min Mat Min Exi Maximum Alert Level 2 | . 1 . 2 1 . Low Security (%) 62 | 100 77 100 31 86 . Level 1 27 | . 22 . 45 13 . Level 2 10 | . . . 23 . . Level 3 . | . . . . . . Level 4 . | . . . . . . Level 5 . | . . . . . . High Security . | . . . . . . Max Security . | . . . . . . Peak Influence 505 | . 248 85 505 229 . Initial 169 | . . 55 . 169 . Average 182 | . 139 28 280 134 . Influence Increases 2298 | . 594 225 1197 282 . Destroy 0b10 Robot/C 1560 | . 360 180 780 240 . Destroy 0b10 Robot/NC 95 | . 35 5 55 . . Destroy Leader 384 | . 98 40 206 40 . Allied During Kill 2 | . . . . 2 . Successful Hack 57 | . 26 . 31 . . Select Force Hacks 120 | . 60 . 60 . . Disable Machine 15 | . . . 15 . . Destroy Structure 5 | . . . 5 . . Partial Spotted 15 | . . . 15 . . Lose Combat Pursuer 45 | . 15 . 30 . . Influence Decreases 2298 | . 452 367 763 695 21 Entered New Map 373 | . . 87 . 265 21 Time Decay 1715 | . 452 250 603 410 . Lost Part 40 | . . 30 10 . . Lost Ally 20 | . . . . 20 . Purge Threat 150 | . . . 150 . . Squads Dispatched 12 | . 6 . 6 . . Investigation 6 | . 3 . 3 . . Extermination . | . . . . . . Reinforcement 6 | . 3 . 3 . . Assault . | . . . . . . Garrison . | . . . . . . Intercept . | . . . . . . Searches Triggered . | . . . . . . Construction Impeded . | . . . . . . Haulers Reinforced . | . . . . . . Active Scanning Responses . | . . . . . . Cargo Convoy Interrupts . | . . . . . . Stealth | -11 -10 -10 -9 -9 -9 --------- Run | Yrd Mat Min Mat Min Exi Distress Signals 6 | . 2 . 4 . . Communications Jammed . | . . . . . . Distress Signals . | . . . . . . Times Spotted 109 | . 26 9 51 12 11 Peak Tracking Total 9 | . 4 3 5 3 9 Tactical Retreats 6 | . 1 . 2 . 3 Traps | -11 -10 -10 -9 -9 -9 ------- Run | Yrd Mat Min Mat Min Exi Traps Triggered 3 | . 3 . . . . Indirectly . | . . . . . . Trap Hack Attempts . | . . . . . . Triggered . | . . . . . . Disarmed . | . . . . . . Reprogrammed . | . . . . . . Reused . | . . . . . . Traps Extracted . | . . . . . . Installed . | . . . . . . Triggered . | . . . . . . Machines | -11 -10 -10 -9 -9 -9 ---------- Run | Yrd Mat Min Mat Min Exi Machines Disabled 7 | . . . 3 . 4 Max in Single Turn 1 | . . . 1 . 1 Machines Repaired . | . . . . . . Machines Dismantled . | . . . . . . Machines Sabotaged . | . . . . . . Overloaded Fab Kills . | . . . . . . Hacking | -11 -10 -10 -9 -9 -9 --------- Run | Yrd Mat Min Mat Min Exi Machines Accessed 22 | . 7 . 13 . 2 Terminals 14 | . 5 . 9 . . Fabricators . | . . . . . . Repair Stations 2 | . . . 2 . . Recycling Units 4 | . 2 . 2 . . Scanalyzers . | . . . . . . Garrison Access . | . . . . . . Total Hacks 60 | . 18 . 40 . 2 Successful 36 | . 11 . 23 . 2 Failed 22 | . 6 . 16 . . Catastrophic 1 | . . . 1 . . Database Lockouts 2 | . 1 . 1 . . Manual 35 | . 16 . 18 . 1 Terminals 41 | . 15 . 26 . . Fabricators . | . . . . . . Repair Stations 12 | . . . 12 . . Recycling Units 5 | . 3 . 2 . . Scanalyzers . | . . . . . . Garrison Access . | . . . . . . Terminal Hacks 14 | . 7 . 5 . 2 Record 1 | . . . . . 1 Robot Analysis 5 | . 4 . 1 . . Prototype ID Bank 2 | . 1 . 1 . . Unreport Threat 1 | . . . 1 . . Locate Traps 4 | . 2 . 2 . . Proto ID Catalog 1 | . . . . . 1 Fabricator Hacks . | . . . . . . Repair Station Hacks 9 | . . . 9 . . Scan Component 5 | . . . 5 . . Repair 4 | . . . 4 . . Recycling Unit Hacks . | . . . . . . Scanalyzer . | . . . . . . Garrison Access Hacks . | . . . . . . Unauthorized Hacks 13 | . 4 . 9 . . Terminals 9 | . 2 . 7 . . Assimilate 1 | . . . 1 . . Botnet 6 | . 2 . 4 . . Disrupt 2 | . . . 2 . . Fabricators . | . . . . . . Repair Stations . | . . . . . . Recycling Units 4 | . 2 . 2 . . Tunnel 4 | . 2 . 2 . . Scanalyzers . | . . . . . . Garrison Access . | . . . . . . Data Cores Recovered . | . . . . . . Used . | . . . . . . Hacking Detections 10 | . 4 . 6 . . Full Trace Events 1 | . . . 1 . . Feedback Events . | . . . . . . Feedback Blocked . | . . . . . . Robot Schematics Acquired . | . . . . . . Robots Built . | . . . . . . Authchips . | . . . . . . Time . | . . . . . . Total Robot Build Rating . | . . . . . . Part Schematics Acquired . | . . . . . . Parts Built . | . . . . . . Authchips . | . . . . . . Time . | . . . . . . Total Part Build Rating . | . . . . . . Parts Repaired 4 | . . . 4 . . Time 141 | . . . 141 . . Parts Recycled . | . . . . . . Recycled Matter . | . . . . . . Retrieved Matter . | . . . . . . Retrieved Components . | . . . . . . Parts Scanalyzed . | . . . . . . Part Schematics Acquired . | . . . . . . Parts Damaged . | . . . . . . Bothacking | -11 -10 -10 -9 -9 -9 ------------ Run | Yrd Mat Min Mat Min Exi Used RIF Installer . | . . . . . . Robots Hacked 3 | . . . . . 3 Non-combat 2 | . . . . . 2 Combat 1 | . . . . . 1 Robot Hacks Applied 3 | . . . . . 3 parse_system 3 | . . . . . 3 Relay Couplers Released . | . . . . . . Fabnet Peak Effective % . | . . . . . . Robots Rewired . | . . . . . . Allies Hacked . | . . . . . . Hacks Repelled . | . . . . . . Allies | -11 -10 -10 -9 -9 -9 -------- Run | Yrd Mat Min Mat Min Exi Total Allies 2 | . . . 1 1 . Largest Group 2 | . . . 1 2 1 Highest-Rated Group 41 | . . . 10 41 10 Highest-Rated Ally 31 | . . . 10 31 10 Total Orders 1 | . . . . . 1 STAY 1 | . . . . . 1 Ally Attacks 6 | . . . . 6 . Total Damage 41 | . . . . 41 . Kills 1 | . . . . 1 . Allies Corrupted . | . . . . . . Allies Melted . | . . . . . . Intel | -11 -10 -10 -9 -9 -9 ------- Run | Yrd Mat Min Mat Min Exi Active Infowar (turns) . | . . . . . . Robot Analysis Total 5 | . 4 . 1 . . Derelict Logs Recovered 3 | . . 2 . 1 . Drone Launches . | . . . . . . Drone Recoveries . | . . . . . . Exploration | -11 -10 -10 -9 -9 -9 ------------- Run | Yrd Mat Min Mat Min Exi Turns Passed 6781 | 2 1249 813 2346 992 1379 Spaces Moved 3474 | 1 683 455 1135 485 715 Core . | . . . . . . Treads 3363 | . 573 455 1135 485 715 Legs 111 | 1 110 . . . . Wheels . | . . . . . . Hover . | . . . . . . Flight . | . . . . . . Fastest Speed 120 | 120 120 160 160 160 160 Average Speed 160 | 120 153 160 160 160 167 Slowest Speed 240 | 120 160 160 160 160 240 Overloaded Moves . | . . . . . . Propulsion Burnouts . | . . . . . . Robots Hopped . | . . . . . . Potential Cave-ins . | . . . . . . Cave-ins Triggered . | . . . . . . Exploration Rate (%) 71 | 2 99 93 91 72 71 Regions Visited 5 Branch Regions 3 Pre-discovered Areas 6 | . 2 1 2 . 1 Known Exits Taken . | . . . . . . Unknown Exits Taken 5 | 1 1 1 1 1 . Scrap Searched 3 | . . 1 . 2 . Spaces Dug . | . . . . . . Terrain Destroyed 31 | . . . . . 31 Melee . | . . . . . . Projectile . | . . . . . . AOE 31 | . . . . . 31 Terrain Rammed . | . . . . . . Walls Destroyed . | . . . . . . Machines Disabled . | . . . . . . Actions | -11 -10 -10 -9 -9 -9 --------- Run | Yrd Mat Min Mat Min Exi Total 4212 | 1 785 488 1460 655 823 Wait 347 | . 14 2 160 146 25 Move 3469 | . 682 454 1134 484 715 Hop . | . . . . . . Pick Up 46 | . 13 . 16 1 16 Fast Attach 24 | . 8 1 10 . 5 Attach 13 | . 1 1 4 . 7 Detach 8 | . 3 . 4 . 1 Swap 17 | 1 2 . 8 1 5 Drop 46 | . 11 . 22 2 11 Fire 230 | . 51 24 99 21 35 Melee 3 | . . . . . 3 Ram . | . . . . . . Kick . | . . . . . . Crush 9 | . . 6 3 . . Escape Stasis . | . . . . . . Rewire . | . . . . . . Trap . | . . . . . . Miscellaneous . | . . . . . . Route ------- -11/Scrapyard -10/Materials (discovered 4 exits: *Mat x3 / [*Min]) -10/Mines (discovered 2 exits: *Mat x2) -9/Materials (discovered 5 exits: *Mat x3 / [*Min x2]) -9/Mines (discovered 3 exits: *Mat x2 / *Exi) -9/Exiles (discovered 2 exits: [*Min x2]) History --------- Turn | Location | Event 3 | -11/Scrapyard | Discovered new exit (range 0) 3 | -11/Scrapyard | Entered Materials 188 | -10/Materials | Discovered new exit (range 12) 243 | -10/Materials | Discovered new exit (range 16) 322 | -10/Materials | Build established: Mutant 426 | -10/Materials | Discovered new exit (range 13) 965 | -10/Materials | Discovered new exit (range 15) 1187 | -10/Materials | Central database locked down 1252 | -10/Materials | Entered Mines 1259 | -10/Mines | Core integrity fell below 50% 1562 | -10/Mines | Discovered new exit (range 5) 2049 | -10/Mines | Learned Materials stockpile data 2051 | -10/Mines | Discovered new exit (range 10) 2065 | -10/Mines | Entered Materials 2065 | -9/Materials | Evolved 2 slots: Propulsion x1, Weapon x1 2128 | -9/Materials | Discovered new exit (range 16) 2392 | -9/Materials | Build established: Tank 2551 | -9/Materials | Repaired Imp. Treads 2584 | -9/Materials | Repaired Shotgun 3021 | -9/Materials | Discovered new exit (range 7) 3183 | -9/Materials | Discovered new exit (range 9) 3439 | -9/Materials | Discovered new exit (range 11) 3448 | -9/Materials | Central database locked down 3615 | -9/Materials | Repaired Imp. Assault Rifle 3643 | -9/Materials | Repaired Lgt. Treads 4099 | -9/Materials | Discovered new exit (range 13) 4411 | -9/Materials | Entered Mines 4411 | -9/Mines | Accompanied by 1 ally 4460 | -9/Mines | Identified exit to Materials 4627 | -9/Mines | Received a Mining Laser from a helpful Derelict 4629 | -9/Mines | A weapon hastily lodged in a ceiling crevice suddenly fell to the ground 4640 | -9/Mines | Discovered exit to Materials (range 5) 4934 | -9/Mines | Deemed a non-threat by the Exiles lab entrance 4934 | -9/Mines | Discovered new exit (range 5) 5045 | -9/Mines | Found a hidden stash of uninstalled traps 5175 | -9/Mines | Assembled infested the area 5403 | -9/Mines | Entered Exiles 5403 | -9/Exiles | Accompanied by 1 ally 5424 | -9/Exiles | Discovered new exit (range 15) 5443 | -9/Exiles | Met 8R-AWN 5469 | -9/Exiles | Met EX-HEX 5512 | -9/Exiles | Met EX-BIN 5533 | -9/Exiles | Aligned with FarCom system 5535 | -9/Exiles | Given EX-Vault access code 5573 | -9/Exiles | Opened EX-Vault 5611 | -9/Exiles | Warned to stay clear of 0b10 Research branches 5780 | -9/Exiles | Met EX-DEC 6151 | -9/Exiles | Build established: Mutant 6158 | -9/Exiles | Discovered new exit (range 10) 6277 | -9/Exiles | Learned location of Zion (-6) 6411 | -9/Exiles | Attacked by the Exiles 6481 | -9/Exiles | Destroyed 7 combat bots 6568 | -9/Exiles | Destroyed 8R-AWN 6579 | -9/Exiles | Lost 5 parts (1p2n2u) 6633 | -9/Exiles | Found Exp. Targeting Computer 6667 | -9/Exiles | Core integrity fell below 50% 6676 | -9/Exiles | Core integrity fell below 20% 6782 | -9/Exiles | Destroyed by DAS Turret with DAS Cannon Last Messages --------------- 06604_ Extracted 66 matter. 06607_ Extracted 46 matter. 06612_ Acquired Hcp. Matter Pod. 06615_ Extracted 50 matter. 06618_ Acquired Lgt. Treads. 06620_ Acquired Mni. Grenade Launcher. 06626_ Acquired Hvy. Assault Rifle. 06630_ Acquired Adv. Myomer Leg. 06633_ Acquired Exp. Targeting Computer. 06636_ Acquired Adv. Weapon Cycler. 06638_ Acquired Gravity Neutralizer. 06639_ Dropped Gravity Neutralizer. 06644_ Acquired 2 matter. 06670_ Imp. Assault Rifle destroyed. 06673_ Lgt. Treads blasted off. 06678_ Acquired Lgt. Treads. 06684_ Acquired 9 matter. 06685_ Acquired 12 matter. 06752_ Hvy. Assault Rifle destroyed. 06780_ Lgt. Treads destroyed. Map ----- +----------------------------------------------------+ | ????????????#######?????????????????????????#" | | ######??????#!!! "#?????????????????????????#" | | #""##?????# "#?????????????????????????#" | | #?????# "#?????????????????????????#" | | ##???## ""#??????????########???????#" | | #####" ""#??????????# """#???????#" | | ##" ""#??????????#"" """#???????## | | # " #????????????#"" #????????# | | ## #????????????#"" #????????#" | | # # # ######???????#"" "#????????#" | | ## ##??????# ""#????????#" | | ### # # # #??????#"" ""#???????##" | | !! ! # #??????### ###??????##"" | | !/ ! ###" # ####???### ###?######"" | | ! "#?# ""#####X# #"###""""""" | | !! ##?## % """""" " "" | | !""""""###??# "" """ " | | ########????### " " | | ??????????????##### | | ?????????????????# ## | | ?????????????????### # | | ???????????????????## % | | ????????????????????# | | ????????????????????#### """""" | | ??????????????????????## %% ######"" | | ??????????????????????#""@ ""##????### | | ?????????????????????##"" """##???????? | | ?????????????????????#""" """##????????? | | ?????????????????????#""" ""#?????????? | | ?????????????????????#"" ########??## | | ?????????????????????#""" ## ####" | | ?????????????????????#"" t """" | | ?????????????????????##"" | | ??????????????????????#"""" | | ??????????????????????## | | ???????????????????????#" " | | ???????????????????????#"""" ""## # | | ???????????????????????#"" ""#### # | | ???????????????????????#" """"##??# # | | ???????????????????????#""" """#??## # | | ???????????????????????## ""##??# | | ????????????????????????#"" """##???#" | | ????????????????????????##""" ##????#" | | ?????????????????????????##"""" ##?????# "" | | ????????????????????????????# #??????##### | | ?????????????????????????????#### ##??????????? | | ????????????????????????????????## ????????????? | | ?????????????????????????????????# ????????????? | | ??????????????????????????????????? ????????????? | | ?????????????????????????????????????????????????? | +----------------------------------------------------+ Best States ------------- Heat Dissipation 35 Energy Generation 18 Energy Capacity 280 Matter Stores 300 Matter Capacity 300 Sight Range 16 Terrain Scan Density 10 Armor Coverage 225 Evasion (%) 55 Targeting Accuracy 12 Recoil Reduction 3 Item Schematics ----------------- None Robot Schematics ------------------ None Fabricated ------------ Nothing Repaired ---------- Imp. Treads | 23% | -9/Materials Shotgun | 23% | -9/Materials Imp. Assault Rifle | 61% | -9/Materials Lgt. Treads | 72% | -9/Materials Alien Tech Used ----------------- None Achievements -------------- None Challenges ------------ None Game ------ Seed StorageScatterBroadsword Manual? 0 Play Time 00:38:45 Cumulative 311.2 hours Start 2025.06.10 @ 14:30:15 End 2025.06.10 @ 15:07:48 Sessions 1 Manual Loads 0 Difficulty Rogue Special Mode None Game No. 219 Rogue 219 Adventurer 0 Explorer 0 Win Type - Total 24 Types 18/0/4/2/0/0/0/0/0/0 Lore% 86 Gallery% 73 Achievement% 64 Wizard Run 0 Options --------- Layout 0 ASCII 1 Keyboard 1 Movement Arrows Keybinds 0 Fullscreen 2 Font 18/Terminus Map View 76x50 Zoom Use 0% Tactical HUD 1 Map Filters NONE Filters NONE Steam 1 RUN: 2c740af3-e06c-4f64-a38a-ed69e74100b9